bitfinex-derivatives/quotes_SOLF0:USTF0_20260116
["timestamp","ask_amount","ask_price","bid_price","bid_amount"]
[1768568976143,6.2771,143.43,143.37,9.51144858]
[1768568976450,5.29868954,143.44,143.37,3.23184858]
[1768568976451,3.11986573,143.44,143.37,3.23184858]
[1768568977749,3.11986573,143.44,143.38,6.279]
[1768568978049,3.11986573,143.44,143.38,3.23184858]
[1768568979752,9.39646573,143.44,143.38,3.23184858]
[1768568979953,2.17882381,143.47,143.36,5.41067239]
[1768568979954,3.11986573,143.43,143.36,5.41067239]
[1768568980648,6.2776,143.42,143.36,3.23184858]
[1768568981840,9.39746573,143.42,143.36,3.23184858]
[1768568986154,3.11986573,143.41,143.34,263.6]
[1768568986353,3.11986573,143.41,143.34,266.83184858]
[1768568987754,3.11986573,143.41,143.34,273.11264858]
[1768568991754,3.11986573,143.41,143.35,3.22520274]
[1768568996960,9.39776573,143.41,143.35,3.22520274]
[1768568998267,9.32915178,143.4,143.35,3.22520274]
[1768568998760,3.05085178,143.4,143.34,263.6]
[1768568999154,3.05085178,143.44,143.35,2.18006311]
[1768568999356,3.05085178,143.44,143.36,3.22520274]
[1768569000766,6.2779,143.41,143.36,3.22520274]
[1768569002768,3.05085178,143.42,143.34,266.82520274]
[1768569002968,3.05085178,143.42,143.32,3.22520274]
[1768569002969,3.05085178,143.4,143.32,3.22520274]
[1768569003158,3.05085178,143.38,143.32,3.22520274]
[1768569004260,9.33005178,143.38,143.32,3.22520274]
[1768569004461,6.2792,143.38,143.32,3.22520274]
[1768569004963,11.50961489,143.4,143.32,3.22520274]
[1768569005160,3.05085178,143.4,143.32,3.22520274]
[1768569006869,9.32965178,143.39,143.32,9.50700274]
[1768569012870,9.33005178,143.38,143.32,3.22520274]
[1768569013179,3.05085178,143.36,143.29,3.22520274]
[1768569013471,3.05085178,143.36,143.29,266.92520274]
[1768569014372,3.05085178,143.36,143.3,3.22520274]
[1768569014873,6.2797,143.37,143.3,3.22520274]
[1768569016069,9.33055178,143.37,143.3,3.22520274]
[1768569017469,3.05085178,143.4,143.31,2.18006311]
[1768569017673,3.05085178,143.4,143.32,3.22520274]
[1768569018868,6.2787,143.39,143.32,9.50660274]
[1768569021576,6.2787,143.39,143.33,3.01035261]
[1768569027079,3.05085178,143.4,143.33,3.01035261]
[1768569027282,3.05085178,143.4,143.34,3.01035261]
[1768569028881,9.32915178,143.4,143.34,3.01035261]
[1768569029482,9.29194238,143.39,143.33,6.2813]
[1768569029983,3.01314238,143.39,143.33,6.2813]
[1768569030179,3.01314238,143.39,143.33,9.52970364]
[1768569040989,3.01314238,143.39,143.34,3.24840364]
[1768569051204,3.01314238,143.39,143.34,9.52930364]
[1768569053106,3.25066252,143.41,143.36,3.17574596]
[1768569053406,5.43034723,143.43,143.36,3.17574596]
[1768569053609,3.25066252,143.43,143.36,3.17574596]
[1768569054207,9.52766252,143.43,143.36,9.45574596]
[1768569054408,3.25066252,143.42,143.35,3.17574596]
[1768569055908,3.25066252,143.42,143.35,9.45624596]
[1768569058711,3.25066252,143.42,143.36,3.17574596]
[1768569058904,8.45668471,143.43,143.37,3.17574596]
[1768569059100,6.277,143.43,143.37,3.17574596]
[1768569059308,3.25066252,143.44,143.37,3.17574596]
[1768569060114,9.52746252,143.44,143.37,3.17574596]
[1768569062010,9.52746252,143.44,143.37,9.45534596]
[1768569062216,9.52746252,143.44,143.38,3.17574596]
[1768569064516,3.25066252,143.45,143.38,3.17574596]
[1768569065815,9.52686252,143.45,143.38,3.17574596]
[1768569066019,9.52686252,143.45,143.37,6.2796]
[1768569066020,3.25066252,143.45,143.39,3.17574596]
[1768569067825,6.2754,143.47,143.4,3.17574596]
[1768569068315,9.52606252,143.47,143.4,3.17574596]
[1768569068821,9.52606252,143.47,143.4,9.45404596]
[1768569070218,2.17968471,143.46,143.4,9.45404596]
[1768569070419,5.43034723,143.46,143.4,9.45404596]
[1768569072024,11.70604723,143.46,143.4,3.17574596]
[1768569074029,3.25066252,143.45,143.38,9.45454596]
[1768569074328,6.2766,143.44,143.38,3.17574596]
[1768569074529,5.43034723,143.42,143.36,9.45544596]
[1768569074727,5.43034723,143.42,143.36,3.17574596]
[1768569076529,3.25066252,143.41,143.34,6.2809]
[1768569076933,3.25066252,143.41,143.34,9.45664596]
[1768569077229,2.17968471,143.4,143.34,9.45664596]
[1768569078328,5.43034723,143.4,143.34,3.17574596]
[1768569084633,3.25066252,143.4,143.34,3.17574596]
[1768569088036,3.25066252,143.4,143.34,9.45654596]
[1768569088434,9.52906252,143.4,143.34,3.17574596]
[1768569091039,11.70874723,143.4,143.34,3.17574596]
[1768569092433,3.1437696,143.39,143.33,273.14431692]
[1768569095238,3.1437696,143.39,143.33,269.9013]
[1768569097542,3.1437696,143.39,143.33,273.14431692]
[1768569101144,3.1437696,143.39,143.33,266.86301692]
[1768569101335,9.4226696,143.39,143.33,266.86301692]
[1768569102649,6.2792,143.38,143.33,266.86301692]
[1768569104553,9.4224696,143.39,143.33,266.86301692]
[1768569109250,9.4220696,143.41,143.34,3.24301692]
[1768569109452,97.6475,143.43,143.34,3.24301692]
[1768569109453,3.1437696,143.43,143.34,3.24301692]
[1768569110949,6.2775,143.42,143.35,3.24301692]
[1768569119262,6.2775,143.42,143.36,3.24054415]
[1768569119855,3.21835366,143.45,143.37,3.24054415]
[1768569120858,9.49445366,143.45,143.38,3.24054415]
[1768569121257,3.21835366,143.45,143.38,3.24054415]
[1768569122765,6.2766,143.44,143.38,3.24054415]
[1768569122963,9.49495366,143.44,143.38,3.24054415]
[1768569124065,3.21835366,143.44,143.38,3.24054415]
[1768569127381,9.49495366,143.44,143.38,3.24054415]
[1768569128278,3.21835366,143.42,143.36,3.24054415]
[1768569128576,3.21835366,143.42,143.35,6.2801]
[1768569128777,3.21835366,143.42,143.35,9.52064415]
[1768569129782,9.49595366,143.42,143.35,9.52064415]
[1768569129981,3.21835366,143.41,143.35,9.52064415]
[1768569135483,3.21835366,143.41,143.36,3.24054415]
[1768569135885,6.2776,143.42,143.36,3.24054415]
[1768569140382,9.49535366,143.43,143.37,3.24054415]
[1768569141586,3.21835366,143.43,143.37,3.24054415]
[1768569150289,3.1964844,143.42,143.37,3.24054415]
[1768569150494,3.1964844,143.42,143.35,9.43784288]
[1768569152988,3.1964844,143.42,143.36,3.15734288]
[1768569163398,3.1964844,143.42,143.37,3.15734288]
[1768569163999,11.65267516,143.44,143.37,3.15734288]
[1768569164303,3.1964844,143.43,143.37,3.15734288]
[1768569167008,3.1964844,143.43,143.38,3.15734288]
[1768569167807,3.1964844,143.45,143.39,3.15734288]
[1768569173906,3.1964844,143.45,143.39,9.43604288]
[1768569174108,5.25358919,143.47,143.4,3.29503417]
[1768569174711,5.25358919,143.47,143.41,9.57283417]
[1768569176213,5.25358919,143.47,143.42,3.29503417]
[1768569176513,3.07468022,143.47,143.42,3.29503417]
[1768569180007,5.25358919,143.47,143.42,3.29503417]
[1768569189620,3.07468022,143.51,143.42,3.29503417]
[1768569189922,2.17890897,143.49,143.42,3.29503417]
[1768569190110,5.25358919,143.49,143.42,3.29503417]
[1768569190822,11.52798919,143.49,143.42,3.29503417]
[1768569192424,3.07468022,143.48,143.42,3.29503417]
[1768569197124,2.17890897,143.47,143.42,3.29503417]
[1768569197630,5.25358919,143.47,143.4,3.29503417]
[1768569197825,3.07468022,143.46,143.4,3.29503417]
[1768569198528,2.17890897,143.45,143.4,3.29503417]
[1768569198825,5.25358919,143.45,143.4,3.29503417]
[1768569201432,3.054794,143.44,143.39,6.2787]
[1768569201628,5.23370297,143.43,143.38,22.09833468]
[1768569203032,5.23370297,143.43,143.38,3.09833468]
[1768569207332,3.054794,143.43,143.38,3.09833468]
[1768569208036,3.054794,143.43,143.38,9.37733468]
[1768569208335,2.17890897,143.44,143.39,3.09833468]
[1768569209936,5.19594534,143.44,143.39,3.09833468]
[1768569214546,5.19594534,143.44,143.38,6.279]
[1768569214732,3.01703637,143.43,143.38,6.279]
[1768569214937,3.01703637,143.43,143.37,9.44628705]
[1768569217742,3.01703637,143.43,143.38,3.16668705]
[1768569218249,3.01703637,143.43,143.38,9.44578705]
[1768569218850,2.17890897,143.44,143.39,3.16668705]
[1768569220150,5.19594534,143.44,143.39,3.16668705]
[1768569224063,2.17890897,143.44,143.39,3.16668705]
[1768569224262,11.47164534,143.46,143.39,3.16668705]
[1768569224562,3.01703637,143.45,143.39,3.16668705]
[1768569230467,9.29233637,143.47,143.4,3.16668705]
[1768569230764,11.47124534,143.47,143.4,3.16668705]
[1768569231756,11.47124534,143.47,143.4,9.44488705]
[1768569232567,11.47124534,143.47,143.42,0.04436066]
[1768569233071,0.04813476,143.45,143.42,0.04436066]
[1768569234165,3.3611179,143.45,143.42,0.04436066]
[1768569235463,3.3611179,143.45,143.38,9.43374689]
[1768569235670,2.17838396,143.44,143.38,9.43374689]
[1768569235865,5.4913671,143.44,143.38,9.43374689]
[1768569243768,6.32433476,143.45,143.39,3.15494689]
[1768569243976,5.4913671,143.48,143.41,3.15494689]
[1768569244174,3.31298314,143.47,143.41,3.15494689]
[1768569244567,3.31298314,143.47,143.41,9.43274689]
[1768569245976,3.31298314,143.47,143.42,9.43224689]
[1768569247370,3.31298314,143.47,143.42,6.2773]
[1768569247575,3.31298314,143.46,143.4,9.43304689]
[1768569248078,3.31298314,143.46,143.41,6.2779]
[1768569248279,3.31298314,143.46,143.41,9.43284689]
[1768569257483,3.31298314,143.48,143.42,9.43214689]
[1768569268794,3.31298314,143.48,143.43,3.31905867]
[1768569269094,11.50618432,143.5,143.43,3.31905867]
[1768569269287,11.50618432,143.5,143.44,3.31905867]
[1768569271892,3.05390036,143.49,143.44,3.31905867]
[1768569272088,3.05390036,143.49,143.43,6.2769]
[1768569275794,3.05390036,143.49,143.43,9.59595867]
[1768569276990,3.05390036,143.49,143.43,3.31905867]
[1768569277899,9.32830036,143.49,143.43,3.31905867]
[1768569281702,3.05390036,143.49,143.43,3.31905867]
[1768569282004,6.2749,143.48,143.43,3.31905867]
[1768569282707,3.05390036,143.49,143.43,3.31905867]
[1768569291122,3.05390036,143.47,143.41,3.31905867]
[1768569292819,3.05390036,143.47,143.42,3.09518786]
[1768569300729,5.36639783,143.49,143.42,9.37258786]
[1768569300928,3.1881116,143.48,143.42,9.37258786]
[1768569303428,3.1881116,143.48,143.43,3.09518786]
[1768569308432,3.1881116,143.48,143.43,9.37208786]
[1768569309125,2.17828623,143.49,143.44,3.09518786]
[1768569309531,9.4620116,143.5,143.44,3.09518786]
[1768569310934,131.0564,143.54,143.45,3.09518786]
[1768569310935,3.1881116,143.52,143.45,3.09518786]
[1768569311538,3.1881116,143.52,143.46,9.37058786]
[1768569314139,3.1881116,143.51,143.44,9.37138786]
[1768569315040,3.1881116,143.5,143.43,3.09518786]
[1768569315537,3.1881116,143.53,143.44,3.09518786]
[1768569315736,2.17828623,143.54,143.44,3.09518786]
[1768569315737,3.1881116,143.51,143.44,3.09518786]
[1768569316837,3.1881116,143.51,143.44,9.37168786]
[1768569317039,3.1881116,143.51,143.45,3.09518786]
[1768569318045,9.4616116,143.51,143.45,3.09518786]
[1768569320842,3.1881116,143.51,143.45,3.09518786]
[1768569321647,3.00799268,143.53,143.46,3.077015]
[1768569322141,3.00799268,143.56,143.46,3.077015]
[1768569322340,8.27933063,143.55,143.48,3.077015]
[1768569322541,3.00799268,143.55,143.48,3.077015]
[1768569325546,3.00799268,143.55,143.48,9.351415]
[1768569325748,3.00799268,143.55,143.49,3.077015]
[1768569326142,3.00799268,143.55,143.5,3.077015]
[1768569326451,5.18627891,143.57,143.5,3.077015]
[1768569327245,3.00799268,143.57,143.5,3.077015]
[1768569327749,3.00799268,143.57,143.5,9.350815]
[1768569328452,3.00799268,143.57,143.51,6.2732]
[1768569331051,3.00799268,143.57,143.5,3.077015]
[1768569332554,3.10359942,143.56,143.5,3.077015]
[1768569333458,3.10359942,143.56,143.48,3.06690781]
[1768569335254,9.37489942,143.56,143.49,3.06690781]
[1768569337051,3.10359942,143.56,143.49,3.06690781]
[1768569343562,3.10359942,143.56,143.49,6.2743]
[1768569344159,3.10359942,143.56,143.49,9.34120781]
[1768569346565,3.10359942,143.56,143.5,3.06690781]
[1768569348772,3.10359942,143.56,143.5,9.34080781]
[1768569361673,3.23741539,143.57,143.52,3.18537022]
[1768569362171,9.50831539,143.57,143.52,3.18537022]
[1768569362371,3.23741539,143.56,143.5,9.45927022]
[1768569363273,9.50871539,143.56,143.5,3.18537022]
[1768569363468,3.23741539,143.55,143.5,3.18537022]
[1768569363868,3.23741539,143.55,143.48,3.18537022]
[1768569364769,3.23741539,143.55,143.49,9.45977022]
[1768569365872,9.50911539,143.55,143.49,3.18537022]
[1768569367376,3.23741539,143.55,143.49,3.18537022]
[1768569367969,2.17560193,143.54,143.47,3.18537022]
[1768569368168,5.41301732,143.53,143.47,3.18537022]
[1768569369876,3.23741539,143.53,143.47,9.46057022]
[1768569370876,3.23741539,143.53,143.47,6.2752]
[1768569371581,3.23741539,143.53,143.48,3.18537022]
[1768569371876,2.17560193,143.54,143.48,9.46007022]
[1768569372578,5.41301732,143.54,143.48,9.46007022]
[1768569373466,5.41301732,143.54,143.39,3.18537022]
[1768569373467,3.23741539,143.48,143.39,3.18537022]
[1768569373666,3.23741539,143.46,143.39,3.18537022]
[1768569373873,2.17560193,143.45,143.39,3.18537022]
[1768569374275,2.17560193,143.45,143.4,3.18537022]
[1768569374869,3.23741539,143.46,143.4,3.18537022]
[1768569375073,5.41301732,143.46,143.41,3.18537022]
[1768569382068,2.17560193,143.46,143.41,3.18537022]
[1768569384881,2.17560193,143.46,143.41,9.46307022]
[1768569394579,2.17560193,143.46,143.41,3.18537022]
[1768569394888,5.39059085,143.46,143.41,3.18537022]
[1768569395281,2.17560193,143.45,143.41,3.18537022]
[1768569396791,3.21498892,143.46,143.41,3.18537022]
[1768569401992,2.17560193,143.45,143.41,3.18537022]
[1768569402384,5.39059085,143.45,143.39,3.10144524]
[1768569402685,3.21498892,143.44,143.39,3.10144524]
[1768569409299,6.2757,143.46,143.4,3.10144524]
[1768569409503,9.49068892,143.46,143.4,3.10144524]
[1768569410996,3.21498892,143.45,143.4,3.10144524]
[1768569417399,3.21498892,143.45,143.37,8.45480193]
[1768569417400,3.07738965,143.43,143.37,3.19578183]
[1768569417900,9.35438965,143.43,143.37,3.19578183]
[1768569421316,6.2774,143.42,143.37,3.19578183]
[1768569422216,9.35478965,143.42,143.37,3.19578183]
[1768569422414,3.07738965,143.42,143.34,4.40889601]
[1768569422817,3.07738965,143.42,143.38,0.04841216]
[1768569423216,110.1594,143.48,143.38,0.04841216]
[1768569423217,5.25683396,143.45,143.38,3.24419399]
[1768569423522,3.07738965,143.45,143.38,3.24419399]
[1768569423722,3.07738965,143.45,143.38,3.19578183]
[1768569423929,9.35388965,143.45,143.38,3.19578183]
[1768569424827,9.35298965,143.47,143.4,3.24619367]
[1768569425328,3.07738965,143.46,143.4,3.19578183]
[1768569425735,3.07738965,143.46,143.42,0.0446038]
[1768569428230,5.25683396,143.46,143.42,0.0446038]
[1768569428418,3.07738965,143.45,143.38,3.19578183]
[1768569429324,3.07738965,143.47,143.39,3.19578183]
[1768569429528,3.07738965,143.49,143.41,3.19578183]
[1768569430836,9.35218965,143.49,143.42,3.19578183]
[1768569433036,3.07738965,143.49,143.42,3.19578183]
[1768569436431,3.07738965,143.48,143.42,3.19578183]
[1768569438637,9.35218965,143.48,143.4,3.19578183]
[1768569438839,3.07738965,143.47,143.4,3.19578183]
[1768569440838,3.07738965,143.47,143.4,9.47408183]
[1768569449543,3.1390639,143.46,143.4,6.2783]
[1768569450134,3.1390639,143.46,143.4,9.5775228]
[1768569451338,3.1390639,143.46,143.4,3.2992228]
[1768569454633,6.2752,143.47,143.41,3.2992228]
[1768569455337,9.4142639,143.47,143.41,3.2992228]
[1768569457246,3.1390639,143.47,143.41,3.2992228]
[1768569461647,3.1390639,143.47,143.41,9.5770228]
[1768569463451,3.1390639,143.47,143.41,3.2992228]
[1768569463749,9.4143639,143.47,143.41,3.2992228]
[1768569464346,9.4149639,143.46,143.41,3.2992228]
[1768569464654,3.1390639,143.45,143.39,3.2992228]
[1768569465753,9.4153639,143.45,143.39,3.2992228]
[1768569467559,3.1390639,143.44,143.39,3.2992228]
[1768569474059,3.14802528,143.43,143.37,9.53629916]
[1768569476661,3.14802528,143.43,143.38,3.25709916]
[1768569480258,3.14802528,143.43,143.36,3.25709916]
[1768569480259,3.14802528,143.42,143.36,3.25709916]
[1768569482765,3.14802528,143.42,143.36,9.53699916]
[1768569482966,3.14802528,143.42,143.37,3.25709916]
[1768569485965,2.1793607,143.45,143.38,3.25709916]
[1768569486365,3.14802528,143.44,143.38,3.25709916]
[1768569486562,3.14802528,143.44,143.36,3.25709916]
[1768569486766,9.42542528,143.42,143.36,9.53679916]
[1768569487973,9.42542528,143.42,143.36,3.25709916]
[1768569492873,3.14802528,143.42,143.36,3.25709916]
[1768569496972,3.14802528,143.4,143.35,263.6]
[1768569497177,3.14802528,143.4,143.34,4.47021334]
[1768569497480,3.14802528,143.39,143.34,4.47021334]
[1768569497679,5.32738598,143.39,143.34,4.47021334]
[1768569498278,3.14802528,143.38,143.31,22.25709916]
[1768569498476,3.14802528,143.38,143.31,3.25709916]
[1768569499077,9.42722528,143.38,143.31,3.25709916]
[1768569499274,3.14802528,143.37,143.31,3.25709916]
[1768569500173,6.2792,143.39,143.31,3.25709916]
[1768569500678,3.14802528,143.38,143.31,3.25709916]
[1768569500874,9.42722528,143.38,143.31,3.25709916]
[1768569501389,3.01866069,143.37,143.31,3.25709916]
[1768569501772,3.01866069,143.36,143.31,3.25709916]
[1768569501975,3.01866069,143.36,143.3,264.87402407]
[1768569502175,3.01866069,143.36,143.29,3.17381528]
[1768569502997,5.19802139,143.35,143.29,3.17381528]
[1768569503786,11.47862139,143.35,143.29,3.17381528]
[1768569505096,9.29926069,143.35,143.29,3.17381528]
[1768569506895,3.01866069,143.35,143.29,3.17381528]
[1768569509196,11.53076188,143.37,143.29,3.17381528]
[1768569509397,3.07160118,143.36,143.29,3.17381528]
[1768569512896,3.07160118,143.36,143.3,3.21090733]
[1768569513395,3.07160118,143.38,143.3,3.21090733]
[1768569513802,3.07160118,143.38,143.32,3.21090733]
[1768569514191,3.07160118,143.38,143.29,19.0]
[1768569514397,3.07160118,143.38,143.3,5.39026803]
[1768569515003,3.07160118,143.38,143.31,3.21090733]
[1768569515802,9.35090118,143.38,143.31,3.21090733]
[1768569515997,3.07160118,143.37,143.31,3.21090733]
[1768569517303,3.07160118,143.36,143.29,9.49400733]
[1768569518803,9.35170118,143.36,143.29,9.49400733]
[1768569521107,9.35170118,143.36,143.29,3.21090733]
[1768569522406,3.07160118,143.35,143.29,3.21090733]
[1768569523006,3.07160118,143.34,143.27,4.42522794]
[1768569524300,3.07160118,143.33,143.27,4.42522794]
[1768569525202,9.35310118,143.33,143.27,3.21090733]
[1768569525906,3.07160118,143.32,143.27,3.21090733]
[1768569526806,3.07160118,143.32,143.25,6.2848]
[1768569527008,3.07160118,143.32,143.25,9.49570733]
[1768569528005,3.07160118,143.32,143.26,3.21090733]
[1768569528701,3.07160118,143.32,143.27,3.21090733]
[1768569531211,11.53206188,143.34,143.27,3.21090733]
[1768569531912,3.004648,143.33,143.27,3.21090733]
[1768569533110,3.004648,143.35,143.28,3.12708632]
[1768569534812,3.004648,143.35,143.28,9.41058632]
[1768569536708,3.004648,143.35,143.28,6.2835]
[1768569537014,3.004648,143.35,143.29,3.12708632]
[1768569538308,9.285148,143.35,143.29,3.12708632]
[1768569541918,11.46790907,143.33,143.27,3.12708632]
[1768569542114,3.004648,143.32,143.26,19.0]
[1768569542419,5.18650907,143.31,143.25,3.12708632]
[1768569543912,11.46880907,143.31,143.25,3.12708632]
[1768569545507,9.287348,143.3,143.25,3.12708632]
[1768569545708,9.287348,143.3,143.24,1.2145537]
[1768569552124,3.004648,143.29,143.24,1.2145537]
[1768569552720,9.287848,143.29,143.24,1.2145537]
[1768569553625,9.287848,143.29,143.24,4.34164002]
[1768569553923,6.2827,143.3,143.25,3.12708632]
[1768569554220,6.2827,143.3,143.21,38.24068903]
[1768569554221,6.2841,143.27,143.21,20.18591428]
[1768569555822,9.288748,143.27,143.21,20.18591428]
[1768569556420,3.004648,143.26,143.21,17.05882796]
[1768569556826,3.004648,143.26,143.21,20.18591428]
[1768569557226,5.18650907,143.28,143.22,3.12708632]
[1768569557427,3.004648,143.28,143.22,3.12708632]
[1768569558827,9.288248,143.28,143.22,3.12708632]
[1768569563630,6.284,143.27,143.22,3.12708632]
[1768569567927,3.004648,143.28,143.22,3.12708632]
[1768569571032,9.288248,143.28,143.22,3.12708632]
[1768569575628,3.004648,143.28,143.22,3.12708632]
[1768569579537,9.288348,143.28,143.22,3.12708632]
[1768569580730,9.288348,143.28,143.23,263.9]
[1768569581436,3.04241368,143.27,143.23,263.9]
[1768569589047,3.04241368,143.27,143.22,3.12708632]
[1768569589235,3.04241368,143.27,143.23,263.9]
[1768569589747,6.2837,143.28,143.23,263.9]
[1768569593953,6.284,143.27,143.23,263.9]
[1768569595846,6.284,143.27,143.23,266.97022183]
[1768569598162,6.2845,143.26,143.23,266.97022183]
[1768569598560,3.01439611,143.27,143.21,20.12904979]
[1768569598763,3.01439611,143.27,143.22,239.1585]
[1768569599056,3.01439611,143.27,143.22,204.518]
[1768569599455,6.2853,143.25,143.22,193.9384]
[1768569600863,6.2844,143.26,143.22,193.9384]
[1768569602163,6.2844,143.26,143.21,20.12904979]
[1768569602164,6.2844,143.26,143.21,284.02904979]
[1768569602663,3.01439611,143.31,143.22,3.07022183]
[1768569602862,3.01439611,143.3,143.22,3.07022183]
[1768569603563,3.01439611,143.32,143.23,3.07022183]
[1768569604360,6.2828,143.3,143.23,3.07022183]
[1768569605058,6.2828,143.3,143.24,3.07022183]
[1768569605257,9.29719611,143.3,143.24,3.07022183]
[1768569606567,3.01439611,143.3,143.24,3.07022183]
[1768569608872,3.01439611,143.3,143.25,3.07022183]
[1768569616575,3.01439611,143.3,143.23,9.35582183]
[1768569619684,3.01439611,143.29,143.23,3.07022183]
[1768569620883,9.29749611,143.29,143.23,3.07022183]
[1768569621187,3.31004379,143.28,143.23,3.07022183]
[1768569621389,3.31004379,143.28,143.21,306.24512796]
[1768569621583,3.31004379,143.27,143.21,20.08775454]
[1768569626086,3.31004379,143.27,143.21,26.37435454]
[1768569633088,3.31004379,143.27,143.21,23.34542796]
[1768569633583,3.31004379,143.27,143.21,26.43247603]
[1768569635393,3.31004379,143.27,143.22,3.08704807]
[1768569645196,9.59404379,143.27,143.22,3.08704807]
[1768569645402,3.10845609,143.26,143.21,17.05882796]
[1768569649901,3.10845609,143.26,143.21,20.14587603]
[1768569653407,3.10845609,143.26,143.21,17.05882796]
[1768569653611,2.18456073,143.22,143.13,3.18104497]
[1768569653806,118.6886,143.26,143.13,3.18104497]
[1768569654001,5.27564898,143.25,143.16,3.18104497]
[1768569654202,97.7548,143.27,143.16,5.3656057]
[1768569654405,7.45867218,143.26,143.17,3.18104497]
[1768569654611,8.46926073,143.26,143.17,3.18104497]
[1768569656913,6.285,143.25,143.17,3.18104497]
[1768569659316,8.47041,143.25,143.17,3.18104497]
[1768569660623,6.285,143.25,143.17,3.18104497]
[1768569660819,97.7413,143.29,143.18,3.18104497]
[1768569660820,8.46971,143.27,143.18,3.18104497]
[1768569661024,6.2843,143.27,143.2,3.18104497]
[1768569668230,8.46921,143.28,143.2,3.18104497]
[1768569676340,2.18541,143.3,143.21,3.18104497]
[1768569676639,5.35729402,143.29,143.22,3.18104497]
[1768569676831,360.3193,143.32,143.22,3.18104497]
[1768569677031,2.18541,143.3,143.22,3.18104497]
[1768569677940,6.2832,143.29,143.22,3.18104497]
[1768569678142,2.18541,143.3,143.22,3.18104497]
[1768569678339,8.46811,143.3,143.23,3.18104497]
[1768569679543,6.2827,143.3,143.23,3.18104497]
[1768569680144,2.18541,143.31,143.24,3.18104497]
[1768569680842,97.6773,143.38,143.25,3.18104497]
[1768569681142,2.18541,143.34,143.25,3.18104497]
[1768569681732,8.46661,143.34,143.25,3.18104497]
[1768569681931,8.46661,143.34,143.26,9.30741642]
[1768569682543,2.18541,143.34,143.28,3.02301642]
[1768569685950,8.46651,143.34,143.28,3.02301642]
[1768569688647,2.18541,143.34,143.28,3.02301642]
[1768569688853,97.6566,143.41,143.32,3.26823665]
[1768569688854,97.6565,143.41,143.32,3.26823665]
[1768569689054,2.18541,143.39,143.32,3.26823665]
[1768569689244,6.2797,143.37,143.32,3.26823665]
[1768569691056,8.46511,143.37,143.32,3.26823665]
[1768569692750,2.18541,143.37,143.32,3.26823665]
[1768569695463,6.2791,143.39,143.32,3.26823665]
[1768569695759,2.18541,143.37,143.32,3.26823665]
[1768569698559,2.18541,143.38,143.32,3.26823665]
[1768569699566,2.18541,143.37,143.32,3.26823665]
[1768569704870,8.46511,143.37,143.32,3.26823665]
[1768569710076,97.6594,143.41,143.32,3.26823665]
[1768569710576,2.18541,143.38,143.32,3.26823665]
[1768569710980,6.2796,143.37,143.32,3.26823665]
[1768569711479,2.18541,143.36,143.32,3.26823665]
[1768569711780,8.46501,143.37,143.32,3.26823665]
[1768569712776,6.2796,143.37,143.32,3.26823665]
[1768569712980,8.46501,143.37,143.32,3.26823665]
[1768569714582,8.46501,143.37,143.3,3.2636609]
[1768569715783,6.2796,143.37,143.31,3.2636609]
[1768569725399,6.2792,143.38,143.31,3.2636609]
[1768569725697,8.46034258,143.38,143.31,3.2636609]
[1768569728396,8.46034258,143.38,143.32,3.2636609]
[1768569729799,6.2792,143.38,143.32,3.2636609]
[1768569730000,8.46034258,143.38,143.32,3.2636609]
[1768569737803,6.2792,143.38,143.32,3.2636609]
[1768569738005,8.46034258,143.38,143.32,3.2636609]
[1768569740006,2.18114258,143.38,143.32,3.2636609]
[1768569740211,2.18114258,143.36,143.31,3.2636609]
[1768569746315,6.2798,143.37,143.31,3.2636609]
[1768569746611,2.18114258,143.36,143.31,3.2636609]
[1768569758423,6.2798,143.37,143.31,3.2636609]
[1768569762520,2.18114258,143.34,143.29,3.11280531]
[1768569770134,6.2806,143.35,143.29,3.11280531]
[1768569770337,2.18114258,143.34,143.29,3.11280531]
[1768569772539,8.46174258,143.35,143.29,3.11280531]
[1768569777243,6.2806,143.35,143.29,3.11280531]
[1768569777435,8.46174258,143.35,143.29,3.11280531]
[1768569781448,8.46285714,143.35,143.29,3.11280531]
[1768569781644,2.18225714,143.34,143.29,3.11280531]
[1768569790554,6.28,143.37,143.29,6.2831]
[1768569790862,2.18225714,143.35,143.3,3.08644568]
[1768569806578,8.46185714,143.37,143.31,3.25636891]
[1768569811070,6.2796,143.37,143.31,3.25636891]
[1768569811271,8.46185714,143.37,143.31,3.25636891]
[1768569814077,8.46185714,143.37,143.3,6.2826]
[1768569814581,8.46185714,143.37,143.3,9.3395999]
[1768569817781,8.46185714,143.37,143.32,0.04985279]
[1768569826088,6.2796,143.37,143.32,0.04985279]
[1768569826282,8.46185714,143.37,143.32,0.04985279]
[1768569830184,6.2801,143.36,143.32,0.04985279]
[1768569831691,2.18225714,143.37,143.32,0.04985279]
[1768569831879,2.18225714,143.38,143.32,3.24620906]
[1768569832085,5.32330918,143.37,143.32,3.24620906]
[1768569832289,2.18225714,143.38,143.32,3.24620906]
[1768569832489,5.32332615,143.37,143.32,3.24620906]
[1768569832792,6.2796,143.37,143.32,3.24620906]